[Event "*** Titled Tuesday Blitz"]
[Site "Chess.com"]
[Date "2021.04.27"]
[Round "2"]
[White "Anton_Demchenko"]
[Black "andriipalchuk"]
[Result "1-0"]
[WhiteElo "2920"]
[BlackElo "2594"]
[TimeControl "180+1"]
[EndTime "10:19:42 PDT"]
[Termination "Anton_Demchenko won by resignation"]

1. e4 {[%clk 0:02:52.3]} 1... c6 {[%clk 0:02:58.8]} 2. d3 {[%clk 0:02:49]} 2...
d5 {[%clk 0:02:59.3]} 3. Nd2 {[%clk 0:02:49.6]} 3... e5 {[%clk 0:02:59.5]} 4.
Ngf3 {[%clk 0:02:49.7]} 4... Bd6 {[%clk 0:03:00]} 5. g3 {[%clk 0:02:50.1]} 5...
Nf6 {[%clk 0:02:59.3]} 6. Bg2 {[%clk 0:02:50.6]} 6... O-O {[%clk 0:02:59.4]} 7.
O-O {[%clk 0:02:51.2]} 7... Re8 {[%clk 0:02:59.3]} 8. Re1 {[%clk 0:02:49.6]}
8... Nbd7 {[%clk 0:02:59.7]} 9. b3 {[%clk 0:02:49.2]} 9... a5 {[%clk 0:02:58.6]}
10. a3 {[%clk 0:02:49.3]} 10... Nf8 {[%clk 0:02:55.2]} 11. Bb2 {[%clk
0:02:48.4]} 11... Ng6 {[%clk 0:02:54.8]} 12. c3 {[%clk 0:02:48.4]} 12... Be6
{[%clk 0:02:45.7]} 13. Qc2 {[%clk 0:02:48.1]} 13... Qd7 {[%clk 0:02:41.9]} 14.
b4 {[%clk 0:02:41.7]} 14... Bh3 {[%clk 0:02:40.6]} 15. Bh1 {[%clk 0:02:32.2]}
15... b5 {[%clk 0:02:18.6]} 16. Rad1 {[%clk 0:02:06.2]} 16... Qa7 {[%clk
0:02:04.9]} 17. Nb3 {[%clk 0:01:51.3]} 17... a4 {[%clk 0:01:47.7]} 18. Nbd2
{[%clk 0:01:50.9]} 18... Bc7 {[%clk 0:01:46.9]} 19. Nf1 {[%clk 0:01:44.2]} 19...
Bxf1 {[%clk 0:01:34]} 20. Kxf1 {[%clk 0:01:30.7]} 20... Rad8 {[%clk 0:01:28.6]}
21. Bc1 {[%clk 0:01:29.9]} 21... Bb6 {[%clk 0:01:24.3]} 22. h3 {[%clk
0:01:23.6]} 22... h6 {[%clk 0:01:22.7]} 23. Bg2 {[%clk 0:01:23.6]} 23... dxe4
{[%clk 0:01:04.1]} 24. dxe4 {[%clk 0:01:23.3]} 24... Nd7 {[%clk 0:01:04.7]} 25.
h4 {[%clk 0:01:15.9]} 25... Nf6 {[%clk 0:00:54.2]} 26. Bh3 {[%clk 0:01:15.8]}
26... Nf8 {[%clk 0:00:53.1]} 27. Kg2 {[%clk 0:01:05.1]} 27... Qb7 {[%clk
0:00:48.3]} 28. Rxd8 {[%clk 0:00:59.3]} 28... Bxd8 {[%clk 0:00:49.2]} 29. c4
{[%clk 0:00:54.7]} 29... Bc7 {[%clk 0:00:37.9]} 30. c5 {[%clk 0:00:54]} 30...
Ne6 {[%clk 0:00:28.1]} 31. Bb2 {[%clk 0:00:53.1]} 31... Qb8 {[%clk 0:00:28.7]}
32. Rd1 {[%clk 0:00:52.8]} 32... Rd8 {[%clk 0:00:27.5]} 33. Bxe6 {[%clk
0:00:51.5]} 33... fxe6 {[%clk 0:00:26.8]} 34. Rxd8+ {[%clk 0:00:48.4]} 34...
Qxd8 {[%clk 0:00:27.7]} 35. Bxe5 {[%clk 0:00:37.9]} 35... Bxe5 {[%clk
0:00:27.6]} 36. Nxe5 {[%clk 0:00:38.5]} 36... Qc7 {[%clk 0:00:27.9]} 37. f4
{[%clk 0:00:37.1]} 37... h5 {[%clk 0:00:24.3]} 38. Qd3 {[%clk 0:00:35.9]} 38...
Kf8 {[%clk 0:00:23.8]} 39. Kf3 {[%clk 0:00:28]} 39... Ke7 {[%clk 0:00:24.4]} 40.
Qd4 {[%clk 0:00:27.6]} 40... Ne8 {[%clk 0:00:15.4]} 41. g4 {[%clk 0:00:24.5]}
41... hxg4+ {[%clk 0:00:15.3]} 42. Nxg4 {[%clk 0:00:25]} 42... Nf6 {[%clk
0:00:15.9]} 43. Ne5 {[%clk 0:00:23.6]} 43... Ne8 {[%clk 0:00:13.2]} 44. Qd1
{[%clk 0:00:13.3]} 44... Nf6 {[%clk 0:00:13.2]} 45. Qg1 {[%clk 0:00:13.3]} 45...
Kf8 {[%clk 0:00:13.1]} 46. Qd1 {[%clk 0:00:08.7]} 46... Ke7 {[%clk 0:00:13]} 47.
Qd3 {[%clk 0:00:09.1]} 47... Ne8 {[%clk 0:00:12.4]} 48. Qd4 {[%clk 0:00:06.6]}
48... Nf6 {[%clk 0:00:12.8]} 49. Kg3 {[%clk 0:00:07]} 49... Nh5+ {[%clk
0:00:12.8]} 50. Kg4 {[%clk 0:00:07]} 50... Nf6+ {[%clk 0:00:13.4]} 51. Kg5
{[%clk 0:00:07.5]} 51... Ke8 {[%clk 0:00:12]} 52. Kg6 {[%clk 0:00:06.1]} 52...
Qe7 {[%clk 0:00:11.4]} 53. h5 {[%clk 0:00:05.1]} 53... Ng8 {[%clk 0:00:10.1]}
54. Ng4 {[%clk 0:00:02.9]} 54... Qf7+ {[%clk 0:00:09.1]} 55. Kg5 {[%clk
0:00:03.4]} 55... Qe7+ {[%clk 0:00:09]} 56. Kg6 {[%clk 0:00:03.9]} 56... Qf7+
{[%clk 0:00:09.5]} 57. Kh7 {[%clk 0:00:03.6]} 57... g6+ {[%clk 0:00:04.8]} 58.
Kh8 {[%clk 0:00:04.2]} 58... gxh5 {[%clk 0:00:05.7]} 59. Ne5 {[%clk 0:00:03.6]}
59... Qe7 {[%clk 0:00:01.8]} 60. Ng6 {[%clk 0:00:03.2]} 60... h4 {[%clk
0:00:02.7]} 61. Nxe7 {[%clk 0:00:03.2]} 61... h3 {[%clk 0:00:02.7]} 62. Nxg8
{[%clk 0:00:02.9]} 62... h2 {[%clk 0:00:03.6]} 63. Nf6+ {[%clk 0:00:03.8]} 63...
Kf7 {[%clk 0:00:03.7]} 64. Qd1 {[%clk 0:00:04.6]} 64... Kxf6 {[%clk 0:00:04.6]}
65. Qh1 {[%clk 0:00:05.3]} 1-0

[Event "*** Titled Tuesday Blitz"]
[Site "Chess.com"]
[Date "2021.04.27"]
[Round "2"]
[White "maximych26"]
[Black "Cptn2"]
[Result "1/2-1/2"]
[WhiteElo "2294"]
[BlackElo "2578"]
[TimeControl "180+1"]
[EndTime "10:19:44 PDT"]
[Termination "Game drawn by repetition"]

1. e4 {[%clk 0:03:00.9]} 1... c5 {[%clk 0:02:46.3]} 2. Nf3 {[%clk 0:03:00.6]}
2... Nf6 {[%clk 0:02:45]} 3. e5 {[%clk 0:02:55.3]} 3... Nd5 {[%clk 0:02:39.2]}
4. Nc3 {[%clk 0:02:55.2]} 4... Nc7 {[%clk 0:02:37.7]} 5. Be2 {[%clk 0:02:51.8]}
5... Nc6 {[%clk 0:02:31.8]} 6. O-O {[%clk 0:02:51.1]} 6... g6 {[%clk 0:02:31.7]}
7. Ne4 {[%clk 0:02:49.2]} 7... Bg7 {[%clk 0:02:30.2]} 8. Nxc5 {[%clk 0:02:46.6]}
8... Nxe5 {[%clk 0:02:28.9]} 9. Nxe5 {[%clk 0:02:46.6]} 9... Bxe5 {[%clk
0:02:29.8]} 10. d4 {[%clk 0:02:46.3]} 10... Bg7 {[%clk 0:02:30.1]} 11. c3 {[%clk
0:02:40.5]} 11... O-O {[%clk 0:02:28]} 12. h4 {[%clk 0:02:38.8]} 12... h5 {[%clk
0:02:23]} 13. Ne4 {[%clk 0:02:36.3]} 13... d5 {[%clk 0:02:20.5]} 14. Ng5 {[%clk
0:02:36.1]} 14... Ne6 {[%clk 0:02:02.6]} 15. Nf3 {[%clk 0:02:23.9]} 15... Qd6
{[%clk 0:01:59.8]} 16. Re1 {[%clk 0:02:20.8]} 16... Nf4 {[%clk 0:01:53.3]} 17.
Bf1 {[%clk 0:02:13.5]} 17... Bg4 {[%clk 0:01:52.2]} 18. g3 {[%clk 0:02:07.4]}
18... Ne6 {[%clk 0:01:39.8]} 19. Be2 {[%clk 0:02:01.7]} 19... a5 {[%clk
0:01:32.9]} 20. a4 {[%clk 0:01:59.5]} 20... Rac8 {[%clk 0:01:18.1]} 21. Be3
{[%clk 0:01:55.3]} 21... Nd8 {[%clk 0:01:10.2]} 22. Bf4 {[%clk 0:01:54.3]} 22...
Qb6 {[%clk 0:01:05.8]} 23. Qd2 {[%clk 0:01:53.4]} 23... Nc6 {[%clk 0:01:05.5]}
24. Ne5 {[%clk 0:01:34.7]} 24... Nxe5 {[%clk 0:01:01.4]} 25. Bxe5 {[%clk
0:01:33.9]} 25... Bxe2 {[%clk 0:00:53.3]} 26. Rxe2 {[%clk 0:01:30.1]} 26... e6
{[%clk 0:00:52.4]} 27. Bxg7 {[%clk 0:01:21.1]} 27... Kxg7 {[%clk 0:00:53.3]} 28.
Qe3 {[%clk 0:01:19.9]} 28... Rc4 {[%clk 0:00:50]} 29. Qe5+ {[%clk 0:01:17.9]}
29... Kg8 {[%clk 0:00:50.1]} 30. g4 {[%clk 0:01:16.3]} 30... hxg4 {[%clk
0:00:46.7]} 31. h5 {[%clk 0:01:16.4]} 31... f6 {[%clk 0:00:44]} 32. Qf4 {[%clk
0:01:08]} 32... gxh5 {[%clk 0:00:38.6]} 33. Qh6 {[%clk 0:01:07.9]} 33... Rc7
{[%clk 0:00:35.6]} 34. Rae1 {[%clk 0:01:02.1]} 34... Rh7 {[%clk 0:00:30]} 35.
Qg6+ {[%clk 0:01:01.8]} 35... Rg7 {[%clk 0:00:30.2]} 36. Qxh5 {[%clk 0:01:00.5]}
36... e5 {[%clk 0:00:27.6]} 37. dxe5 {[%clk 0:00:57.2]} 37... fxe5 {[%clk
0:00:27.5]} 38. Kg2 {[%clk 0:00:49.4]} 38... Qf6 {[%clk 0:00:23.1]} 39. Qxe5
{[%clk 0:00:46.6]} 39... Qf3+ {[%clk 0:00:20.2]} 40. Kg1 {[%clk 0:00:45.8]}
40... g3 {[%clk 0:00:14.6]} 41. Qe6+ {[%clk 0:00:42.6]} 41... Kh8 {[%clk
0:00:10.8]} 42. Qh3+ {[%clk 0:00:41.5]} 42... Kg8 {[%clk 0:00:08.4]} 43. Qe6+
{[%clk 0:00:41.1]} 43... Rff7 {[%clk 0:00:04.6]} 44. Qc8+ {[%clk 0:00:39.4]}
44... Kh7 {[%clk 0:00:04.3]} 45. Qh3+ {[%clk 0:00:38.6]} 45... Kg8 {[%clk
0:00:04.1]} 46. Re8+ {[%clk 0:00:37.2]} 46... Rf8 {[%clk 0:00:04.6]} 47. Rxf8+
{[%clk 0:00:32.7]} 47... Qxf8 {[%clk 0:00:03.3]} 48. fxg3 {[%clk 0:00:30.2]}
48... Qc5+ {[%clk 0:00:03.5]} 49. Kh1 {[%clk 0:00:27.5]} 49... Qc6 {[%clk
0:00:04]} 50. Kg1 {[%clk 0:00:21.8]} 50... d4 {[%clk 0:00:04]} 51. cxd4 {[%clk
0:00:20]} 51... Qd6 {[%clk 0:00:03.3]} 52. Qe6+ {[%clk 0:00:18.8]} 52... Qxe6
{[%clk 0:00:03.4]} 53. Rxe6 {[%clk 0:00:18.5]} 53... Rxg3+ {[%clk 0:00:04.3]}
54. Kf2 {[%clk 0:00:18.4]} 54... Rb3 {[%clk 0:00:05.2]} 55. Re8+ {[%clk
0:00:18.1]} 55... Kf7 {[%clk 0:00:05.3]} 56. Re5 {[%clk 0:00:18.4]} 56... Rxb2+
{[%clk 0:00:05.5]} 57. Ke3 {[%clk 0:00:19.1]} 57... Rb4 {[%clk 0:00:06.4]} 58.
Rxa5 {[%clk 0:00:18.2]} 58... Ke6 {[%clk 0:00:06]} 59. Rb5 {[%clk 0:00:18.2]}
59... Rxa4 {[%clk 0:00:04]} 60. Rxb7 {[%clk 0:00:18.3]} 60... Kd5 {[%clk
0:00:04.9]} 61. Rb5+ {[%clk 0:00:18.3]} 61... Kc6 {[%clk 0:00:05.8]} 62. Rh5
{[%clk 0:00:15.1]} 62... Ra1 {[%clk 0:00:05.9]} 63. Ke4 {[%clk 0:00:14.8]} 63...
Re1+ {[%clk 0:00:05.3]} 64. Kd3 {[%clk 0:00:15.3]} 64... Rd1+ {[%clk 0:00:06.2]}
65. Ke4 {[%clk 0:00:15.5]} 65... Re1+ {[%clk 0:00:06.6]} 66. Kd3 {[%clk
0:00:15.5]} 66... Rd1+ {[%clk 0:00:07.2]} 67. Ke4 {[%clk 0:00:15.7]} 67... Re1+
{[%clk 0:00:07.6]} 1/2-1/2

[Event "*** Titled Tuesday Blitz"]
[Site "Chess.com"]
[Date "2021.04.27"]
[Round "2"]
[White "oskariot"]
[Black "WuinaterJr"]
[Result "0-1"]
[WhiteElo "2740"]
[BlackElo "2542"]
[TimeControl "180+1"]
[EndTime "10:19:48 PDT"]
[Termination "WuinaterJr won by resignation"]

1. e4 {[%clk 0:03:00.9]} 1... c5 {[%clk 0:02:59.7]} 2. Nf3 {[%clk 0:03:00.4]}
2... d6 {[%clk 0:02:59.7]} 3. Nc3 {[%clk 0:02:59.5]} 3... a6 {[%clk 0:02:59.3]}
4. h3 {[%clk 0:03:00.1]} 4... Nf6 {[%clk 0:02:59.2]} 5. g4 {[%clk 0:02:59.2]}
5... g6 {[%clk 0:02:58.6]} 6. Bg2 {[%clk 0:02:59.2]} 6... Bg7 {[%clk 0:02:58.6]}
7. d4 {[%clk 0:02:59.9]} 7... cxd4 {[%clk 0:02:58.6]} 8. Nxd4 {[%clk 0:03:00.8]}
8... O-O {[%clk 0:02:58.9]} 9. O-O {[%clk 0:03:01.2]} 9... Qc7 {[%clk
0:02:58.7]} 10. Nde2 {[%clk 0:02:53.8]} 10... Nc6 {[%clk 0:02:56.5]} 11. Ng3
{[%clk 0:02:50.3]} 11... b5 {[%clk 0:02:51.9]} 12. g5 {[%clk 0:02:50.3]} 12...
Nd7 {[%clk 0:02:51.4]} 13. a4 {[%clk 0:02:47.3]} 13... b4 {[%clk 0:02:48.9]} 14.
Nd5 {[%clk 0:02:47.6]} 14... Qd8 {[%clk 0:02:43.6]} 15. f4 {[%clk 0:02:48]}
15... Bb7 {[%clk 0:02:43.1]} 16. Kh1 {[%clk 0:02:27.2]} 16... Rc8 {[%clk
0:02:42.3]} 17. Rb1 {[%clk 0:02:19.4]} 17... a5 {[%clk 0:02:42.1]} 18. Rf2
{[%clk 0:02:07.1]} 18... Re8 {[%clk 0:02:37.6]} 19. h4 {[%clk 0:02:04.2]} 19...
Nb6 {[%clk 0:02:31]} 20. Ne3 {[%clk 0:01:55.5]} 20... Nxa4 {[%clk 0:02:20.3]}
21. Ng4 {[%clk 0:01:43.8]} 21... Nc5 {[%clk 0:02:12.3]} 22. Nh6+ {[%clk
0:01:41.4]} 22... Bxh6 {[%clk 0:02:12.5]} 23. gxh6 {[%clk 0:01:42.3]} 23... e5
{[%clk 0:02:08.5]} 24. Qg4 {[%clk 0:01:33]} 24... exf4 {[%clk 0:01:57.9]} 25.
Bxf4 {[%clk 0:01:28.8]} 25... Ne5 {[%clk 0:01:56.9]} 26. Bxe5 {[%clk 0:01:14.8]}
26... Rxe5 {[%clk 0:01:56.8]} 27. Rbf1 {[%clk 0:01:10.1]} 27... Rc7 {[%clk
0:01:53.4]} 28. Qf4 {[%clk 0:00:54.5]} 28... Ne6 {[%clk 0:01:49.4]} 29. Qg4
{[%clk 0:00:51.2]} 29... Nd4 {[%clk 0:01:44.3]} 30. c3 {[%clk 0:00:49.6]} 30...
Bc8 {[%clk 0:01:34]} 31. Qf4 {[%clk 0:00:32.4]} 31... Ne6 {[%clk 0:01:34.1]} 32.
Qe3 {[%clk 0:00:32.8]} 32... Ba6 {[%clk 0:01:24]} 33. Rd1 {[%clk 0:00:31]} 33...
Qxh4+ {[%clk 0:00:53.6]} 34. Kg1 {[%clk 0:00:30.4]} 34... Rg5 {[%clk 0:00:53.8]}
35. Nh1 {[%clk 0:00:24.2]} 35... Rh5 {[%clk 0:00:43.5]} 36. Bf3 {[%clk
0:00:15.1]} 36... Rg5+ {[%clk 0:00:43.3]} 37. Bg2 {[%clk 0:00:15.3]} 37... Rh5
{[%clk 0:00:43.7]} 38. Bf3 {[%clk 0:00:15.2]} 38... Qg5+ {[%clk 0:00:43.9]} 39.
Qxg5 {[%clk 0:00:13.6]} 39... Rxg5+ {[%clk 0:00:44.8]} 40. Kh2 {[%clk
0:00:12.8]} 40... bxc3 {[%clk 0:00:45]} 41. bxc3 {[%clk 0:00:09.2]} 41... Rxc3
{[%clk 0:00:25.1]} 42. Rxd6 {[%clk 0:00:08.9]} 42... Bc4 {[%clk 0:00:25.5]} 43.
Rc6 {[%clk 0:00:05.2]} 43... Kf8 {[%clk 0:00:18.8]} 44. Be2 {[%clk 0:00:05.7]}
44... Nd4 {[%clk 0:00:11.2]} 45. Rxc4 {[%clk 0:00:05.4]} 45... Nxe2 {[%clk
0:00:11.4]} 46. Rxc3 {[%clk 0:00:03.8]} 46... Nxc3 {[%clk 0:00:12.3]} 47. Ng3
{[%clk 0:00:04]} 47... a4 {[%clk 0:00:12.8]} 48. Rc2 {[%clk 0:00:04.1]} 48...
Rc5 {[%clk 0:00:11.3]} 49. e5 {[%clk 0:00:04.3]} 49... a3 {[%clk 0:00:11.5]} 50.
Ne2 {[%clk 0:00:04.9]} 50... Ne4 {[%clk 0:00:08.8]} 51. Ra2 {[%clk 0:00:04.4]}
51... Ra5 {[%clk 0:00:09]} 52. Kg2 {[%clk 0:00:04.7]} 52... Ke7 {[%clk
0:00:09.3]} 53. Kf3 {[%clk 0:00:05.3]} 53... Nc5 {[%clk 0:00:09.7]} 54. Ke3
{[%clk 0:00:05.6]} 54... Ke6 {[%clk 0:00:10.1]} 55. Kd4 {[%clk 0:00:06.1]} 55...
Nd7 {[%clk 0:00:10.5]} 56. Nc3 {[%clk 0:00:06]} 56... Rxe5 {[%clk 0:00:10.4]}
57. Rxa3 {[%clk 0:00:05.7]} 57... Rh5 {[%clk 0:00:10.8]} 58. Ra6+ {[%clk
0:00:05.9]} 58... Ke7 {[%clk 0:00:11.4]} 59. Nd5+ {[%clk 0:00:06.1]} 59... Rxd5+
{[%clk 0:00:07.8]} 60. Kxd5 {[%clk 0:00:06.1]} 60... Nf6+ {[%clk 0:00:08.7]} 61.
Kd4 {[%clk 0:00:04.8]} 61... Ng4 {[%clk 0:00:09.4]} 62. Ke4 {[%clk 0:00:02.7]}
62... Nxh6 {[%clk 0:00:09.7]} 63. Kd5 {[%clk 0:00:03.6]} 63... Nf5 {[%clk
0:00:10.1]} 64. Ra7+ {[%clk 0:00:04.1]} 64... Kf6 {[%clk 0:00:10.2]} 65. Ra6+
{[%clk 0:00:05]} 65... Kg5 {[%clk 0:00:10.6]} 66. Ke5 {[%clk 0:00:05.9]} 66...
h5 {[%clk 0:00:10.4]} 67. Ra1 {[%clk 0:00:06.8]} 67... h4 {[%clk 0:00:10.6]} 68.
Rg1+ {[%clk 0:00:07.7]} 68... Ng3 {[%clk 0:00:10.7]} 69. Kd4 {[%clk 0:00:06.8]}
69... f5 {[%clk 0:00:11.2]} 70. Ke3 {[%clk 0:00:06.9]} 70... Kg4 {[%clk
0:00:11.8]} 71. Kf2 {[%clk 0:00:07.8]} 71... f4 {[%clk 0:00:12.4]} 72. Rb1
{[%clk 0:00:08.7]} 72... g5 {[%clk 0:00:12.9]} 73. Rb4 {[%clk 0:00:09.6]} 73...
h3 {[%clk 0:00:13.3]} 74. Rb5 {[%clk 0:00:10]} 74... h2 {[%clk 0:00:13.8]} 75.
Kg2 {[%clk 0:00:10.8]} 75... h1=Q+ {[%clk 0:00:14.2]} 0-1

[Event "*** Titled Tuesday Blitz"]
[Site "Chess.com"]
[Date "2021.04.27"]
[Round "2"]
[White "IMRosen"]
[Black "GameOverBro"]
[Result "0-1"]
[WhiteElo "2671"]
[BlackElo "2502"]
[TimeControl "180+1"]
[EndTime "10:19:48 PDT"]
[Termination "GameOverBro won on time"]

1. d4 {[%clk 0:03:00.8]} 1... d6 {[%clk 0:02:59.2]} 2. e4 {[%clk 0:02:56.5]}
2... Nf6 {[%clk 0:02:59.1]} 3. Nc3 {[%clk 0:02:55.5]} 3... e5 {[%clk 0:02:59.3]}
4. Nf3 {[%clk 0:02:54.1]} 4... Nbd7 {[%clk 0:02:59.4]} 5. Bc4 {[%clk 0:02:54.4]}
5... Be7 {[%clk 0:02:59.1]} 6. O-O {[%clk 0:02:55]} 6... c6 {[%clk 0:02:59.2]}
7. Re1 {[%clk 0:02:55.5]} 7... h6 {[%clk 0:02:58.8]} 8. a4 {[%clk 0:02:56]} 8...
Qc7 {[%clk 0:02:59]} 9. h3 {[%clk 0:02:56.1]} 9... Nf8 {[%clk 0:02:58.7]} 10.
Be3 {[%clk 0:02:56.1]} 10... Ng6 {[%clk 0:02:58.7]} 11. Qb1 {[%clk 0:02:56]}
11... O-O {[%clk 0:02:56.9]} 12. Qa2 {[%clk 0:02:55.6]} 12... Nh5 {[%clk
0:02:55]} 13. Rad1 {[%clk 0:02:52]} 13... Nhf4 {[%clk 0:02:54.8]} 14. Ne2 {[%clk
0:02:38.9]} 14... Nxe2+ {[%clk 0:02:52.9]} 15. Rxe2 {[%clk 0:02:39.1]} 15... b6
{[%clk 0:02:45.9]} 16. Red2 {[%clk 0:02:32.8]} 16... a6 {[%clk 0:02:45.4]} 17.
c3 {[%clk 0:02:19.9]} 17... Rb8 {[%clk 0:02:45]} 18. Bb3 {[%clk 0:02:16.8]}
18... b5 {[%clk 0:02:44.3]} 19. a5 {[%clk 0:02:17.4]} 19... c5 {[%clk
0:02:41.3]} 20. dxc5 {[%clk 0:02:11.1]} 20... dxc5 {[%clk 0:02:40.9]} 21. Bd5
{[%clk 0:02:10.4]} 21... c4 {[%clk 0:02:40.1]} 22. Bb6 {[%clk 0:02:04.9]} 22...
Rxb6 {[%clk 0:02:29.9]} 23. axb6 {[%clk 0:02:05.8]} 23... Qxb6 {[%clk 0:02:30]}
24. Nh2 {[%clk 0:02:00.4]} 24... Bc5 {[%clk 0:02:27.7]} 25. Qb1 {[%clk
0:01:52.6]} 25... Nf4 {[%clk 0:02:26.4]} 26. Nf1 {[%clk 0:01:37.5]} 26... Qg6
{[%clk 0:02:18.6]} 27. Ne3 {[%clk 0:01:14.6]} 27... Nxg2 {[%clk 0:02:03.7]} 28.
Kh2 {[%clk 0:01:03.5]} 28... Nxe3 {[%clk 0:02:00.2]} 29. fxe3 {[%clk 0:01:00.7]}
29... Bxe3 {[%clk 0:02:00.1]} 30. Rg2 {[%clk 0:01:00.5]} 30... Bf4+ {[%clk
0:02:00.1]} 31. Kg1 {[%clk 0:00:49.4]} 31... Qh5 {[%clk 0:01:59.5]} 32. Re1
{[%clk 0:00:34.4]} 32... Bxh3 {[%clk 0:01:57.8]} 33. Qc2 {[%clk 0:00:34.4]}
33... Qf3 {[%clk 0:01:31.8]} 34. Qe2 {[%clk 0:00:17.5]} 34... Bxg2 {[%clk
0:01:30.2]} 35. Qxg2 {[%clk 0:00:16.8]} 35... Be3+ {[%clk 0:01:29.7]} 36. Kh2
{[%clk 0:00:11.5]} 36... Qh5+ {[%clk 0:01:19]} 37. Qh3 {[%clk 0:00:11.2]} 37...
Bf4+ {[%clk 0:01:18.1]} 38. Kg2 {[%clk 0:00:10.8]} 38... Qg5+ {[%clk 0:01:17.6]}
39. Kf3 {[%clk 0:00:10.8]} 39... Bd2 {[%clk 0:01:14.8]} 40. Re2 {[%clk
0:00:08.5]} 40... Qf4+ {[%clk 0:01:11.5]} 41. Kg2 {[%clk 0:00:08.7]} 41... Bc1
{[%clk 0:01:07.1]} 42. Qg3 {[%clk 0:00:07.6]} 42... Qxg3+ {[%clk 0:01:04.7]} 43.
Kxg3 {[%clk 0:00:08.5]} 43... Rd8 {[%clk 0:01:02.6]} 44. Rc2 {[%clk 0:00:08.9]}
44... Bf4+ {[%clk 0:01:02.2]} 45. Kf3 {[%clk 0:00:08.4]} 45... g6 {[%clk
0:01:01.2]} 46. Rg2 {[%clk 0:00:08.6]} 46... Kg7 {[%clk 0:01:01.1]} 47. Rg1
{[%clk 0:00:09.1]} 47... Rd6 {[%clk 0:00:55.8]} 48. Rd1 {[%clk 0:00:08.6]} 48...
h5 {[%clk 0:00:54.8]} 49. Rh1 {[%clk 0:00:08.3]} 49... Rb6 {[%clk 0:00:51.6]}
50. Rb1 {[%clk 0:00:07.5]} 50... g5 {[%clk 0:00:49.9]} 51. b3 {[%clk 0:00:05.1]}
51... g4+ {[%clk 0:00:49.5]} 52. Ke2 {[%clk 0:00:04.9]} 52... cxb3 {[%clk
0:00:49.5]} 53. Rxb3 {[%clk 0:00:05.8]} 53... Kf6 {[%clk 0:00:46.4]} 54. c4
{[%clk 0:00:06.1]} 54... h4 {[%clk 0:00:44]} 55. c5 {[%clk 0:00:06.5]} 55... Rb8
{[%clk 0:00:43.2]} 56. Ra3 {[%clk 0:00:06.8]} 56... h3 {[%clk 0:00:41]} 57.
Rxa6+ {[%clk 0:00:07.1]} 57... Kg5 {[%clk 0:00:41]} 58. Ra1 {[%clk 0:00:04]}
58... g3 {[%clk 0:00:40.3]} 59. c6 {[%clk 0:00:03.6]} 59... g2 {[%clk
0:00:39.6]} 60. Kf3 {[%clk 0:00:04.1]} 60... f5 {[%clk 0:00:35.8]} 61. Be6
{[%clk 0:00:01.5]} 61... fxe4+ {[%clk 0:00:34]} 62. Kxe4 {[%clk 0:00:02.4]}
62... Kh4 {[%clk 0:00:33.5]} 63. c7 {[%clk 0:00:02.8]} 63... Rf8 {[%clk
0:00:31.7]} 64. c8=Q {[%clk 0:00:02.3]} 64... Rxc8 {[%clk 0:00:31.6]} 65. Bxc8
{[%clk 0:00:03.2]} 65... Bh2 {[%clk 0:00:24.8]} 66. Bd7 {[%clk 0:00:02.3]} 66...
g1=Q {[%clk 0:00:23.7]} 67. Rxg1 {[%clk 0:00:02.7]} 67... Bxg1 {[%clk
0:00:23.7]} 68. Kf3 {[%clk 0:00:03.1]} 68... b4 {[%clk 0:00:22.3]} 69. Be6
{[%clk 0:00:02.9]} 69... Bd4 {[%clk 0:00:20.9]} 70. Bd5 {[%clk 0:00:01.7]} 70...
h2 {[%clk 0:00:18.5]} 71. Kg2 {[%clk 0:00:02]} 71... Bg1 {[%clk 0:00:18.5]} 0-1